fUSD/lending_fUSD_20250107
["ID","MTS","AMOUNT","RATE_DAILY","PERIOD"]
[347976058,1736257862620,-151.0,0.00010316,2]
[347976059,1736257862651,-933.95,0.00010316,2]
[347976060,1736257862682,-692.45,0.00010317,2]
[347976061,1736257862714,-1437.88,0.00010317,2]
[347976062,1736257862748,-870.49,0.00010317,2]
[347976063,1736257862779,-3316.03,0.00010317,2]
[347976064,1736257862811,-3906.11,0.00010317,2]
[347976065,1736257862847,-1991.91,0.00010317,2]
[347976066,1736257862886,-1684.03,0.00010317,2]
[347976067,1736257862920,-1012.76,0.00010317,2]
[347976068,1736257862952,-5511.6,0.00010317,2]
[347976069,1736257862983,-3077.93,0.00010317,2]
[347976070,1736257863014,-3222.16,0.00010317,2]
[347976071,1736257863047,-14899.67,0.00010317,2]
[347976072,1736257863083,-500.0,0.00010317,2]
[347976073,1736257863117,-1657.04,0.00010318,2]
[347976074,1736257863152,-1042.99,0.00010318,2]
[347976075,1736257863188,-2183.4,0.00010318,2]
[347976076,1736257863222,-500.0,0.00010318,2]
[347976077,1736257863256,-1262.12,0.00010318,2]
[347976078,1736257863289,-1567.46,0.00010318,2]
[347976079,1736257863322,-923.13,0.00010318,2]
[347976080,1736257863361,-3310.73,0.00010318,2]
[347976081,1736257863393,-2640.22,0.00010318,2]
[347976082,1736257863425,-151.0,0.0001032,2]
[347976083,1736257863458,-150.0,0.00010333,2]
[347976084,1736257863492,-251.16384214,0.00010417,2]
[347976085,1736257863524,-788.59,0.00010421,2]
[347976086,1736257863556,-173.3316784,0.000105,2]
[347976087,1736257863589,-152.8,0.000105,2]
[347976088,1736257863621,-500.0,0.0001052,2]
[347976089,1736257863654,-663.09,0.0001052,2]
[347976090,1736257863686,-500.0,0.0001052,2]
[347976091,1736257863717,-500.0,0.0001052,2]
[347976092,1736257863750,-538.05,0.0001052,2]
[347976093,1736257863785,-539.06,0.0001052,2]
[347976094,1736257863819,-500.0,0.0001052,2]
[347976095,1736257863854,-516.31,0.0001052,2]
[347976096,1736257863890,-500.0,0.0001052,2]
[347976097,1736257863982,-500.0,0.0001052,2]
[347976098,1736257864018,-575.66,0.0001052,2]
[347976099,1736257864055,-500.0,0.0001052,2]
[347976100,1736257864089,-500.0,0.0001052,2]
[347976101,1736257864123,-500.0,0.0001052,2]
[347976102,1736257864157,-500.0,0.0001052,2]
[347976103,1736257864190,-672.1,0.0001052,2]
[347976104,1736257864225,-500.0,0.0001052,2]
[347976105,1736257864258,-500.0,0.0001052,2]
[347976106,1736257864292,-515.14,0.0001052,2]
[347976107,1736257864326,-574.83,0.0001052,2]
[347976108,1736257864361,-553.83,0.0001052,2]
[347976109,1736257864394,-629.07,0.0001052,2]
[347976110,1736257864429,-610.58,0.0001052,2]
[347976111,1736257864462,-500.0,0.0001052,2]
[347976112,1736257864494,-2287.44,0.0001052,2]
[347976113,1736257864527,-500.0,0.0001052,2]
[347976114,1736257864559,-1440.5,0.0001052,2]
[347976115,1736257864590,-1687.68,0.0001052,2]
[347976116,1736257864622,-1024.01,0.0001052,2]
[347976117,1736257864655,-1720.02,0.0001052,2]
[347976118,1736257864686,-851.99,0.0001052,2]
[347976119,1736257864723,-903.79,0.0001052,2]
[347976120,1736257864755,-550.11,0.0001052,2]
[347976121,1736257864787,-500.0,0.0001052,2]
[347976122,1736257864818,-500.0,0.0001052,2]
[347976123,1736257864852,-269.76790156,0.0001052,2]
[347976124,1736257864885,-500.0,0.0001052,2]
[347976125,1736257864918,-1643.01,0.0001052,2]
[347976126,1736257864952,-500.0,0.0001052,2]
[347976127,1736257864986,-500.0,0.0001052,2]
[347976128,1736257865021,-639.04,0.0001052,2]
[347976129,1736257865053,-500.0,0.0001052,2]
[347976130,1736257865088,-500.0,0.0001052,2]
[347976131,1736257865121,-500.0,0.0001052,2]
[347976132,1736257865153,-1964.96,0.0001052,2]
[347976133,1736257865186,-500.0,0.0001052,2]
[347976134,1736257865218,-1896.73,0.0001052,2]
[347976135,1736257865252,-500.0,0.0001052,2]
[347976136,1736257865285,-500.0,0.0001052,2]
[347976137,1736257865317,-500.0,0.0001052,2]
[347976138,1736257865351,-500.0,0.0001052,2]
[347976139,1736257865385,-977.17,0.0001052,2]
[347976140,1736257865417,-2741.49,0.0001052,2]
[347976141,1736257865448,-500.0,0.0001052,2]
[347976142,1736257865480,-500.0,0.0001052,2]
[347976143,1736257865511,-2012.97,0.0001052,2]
[347976144,1736257865543,-574.03,0.0001052,2]
[347976145,1736257865574,-2070.71,0.0001052,2]
[347976146,1736257865608,-500.0,0.0001052,2]
[347976147,1736257865640,-500.0,0.0001052,2]
[347976148,1736257865671,-737.54,0.0001052,2]
[347976149,1736257865701,-500.0,0.0001052,2]
[347976150,1736257865735,-500.0,0.0001052,2]
[347976151,1736257865768,-500.0,0.0001052,2]
[347976152,1736257865799,-524.89,0.0001052,2]
[347976153,1736257865831,-1724.58,0.0001052,2]
[347976154,1736257865861,-500.0,0.0001052,2]
[347976155,1736257865891,-500.0,0.0001052,2]
[347976156,1736257865921,-956.02,0.0001052,2]
[347976157,1736257865952,-2305.42,0.0001052,2]
[347976158,1736257865984,-525.73,0.0001052,2]
[347976159,1736257866013,-638.0,0.0001052,2]
[347976160,1736257866047,-587.3,0.0001052,2]
[347976161,1736257866083,-571.13,0.0001052,2]
[347976162,1736257866114,-1355.79,0.0001052,2]
[347976163,1736257866145,-1031.47,0.0001052,2]
[347976164,1736257866177,-4114.69,0.0001052,2]
[347976165,1736257866207,-500.0,0.0001052,2]
[347976166,1736257866235,-632.86,0.0001052,2]
[347976167,1736257866267,-518.93,0.0001052,2]
[347976168,1736257866295,-500.0,0.0001052,2]
[347976169,1736257866325,-1009.19,0.0001052,2]
[347976170,1736257866355,-1000.9,0.0001052,2]
[347976171,1736257866386,-2288.69,0.0001052,2]
[347976172,1736257866415,-500.0,0.0001052,2]
[347976173,1736257866446,-791.75,0.0001052,2]
[347976174,1736257866475,-663.46,0.0001052,2]
[347976175,1736257866504,-500.0,0.0001052,2]
[347976176,1736257866533,-500.0,0.0001052,2]
[347976177,1736257866564,-1840.35,0.0001052,2]
[347976178,1736257866597,-2352.55,0.0001052,2]
[347976179,1736257866627,-500.0,0.0001052,2]
[347976180,1736257866658,-500.0,0.0001052,2]
[347976181,1736257866688,-500.0,0.0001052,2]
[347976182,1736257866720,-500.0,0.0001052,2]
[347976183,1736257866750,-914.56,0.0001052,2]
[347976184,1736257866779,-524.26,0.0001052,2]
[347976185,1736257866810,-500.0,0.0001052,2]
[347976186,1736257866844,-626.29,0.0001052,2]
[347976187,1736257866877,-500.0,0.0001052,2]
[347976188,1736257866908,-1717.4,0.0001052,2]
[347976189,1736257866939,-500.0,0.0001052,2]
[347976190,1736257866970,-685.03,0.0001052,2]
[347976191,1736257867005,-500.0,0.0001052,2]
[347976192,1736257867035,-500.0,0.0001052,2]
[347976193,1736257867065,-550.11,0.0001052,2]
[347976194,1736257867097,-500.0,0.0001052,2]
[347976195,1736257867128,-525.45,0.0001052,2]
[347976196,1736257867158,-500.0,0.0001052,2]
[347976197,1736257867189,-500.0,0.0001052,2]
[347976198,1736257867230,-2384.71,0.0001052,2]
[347976199,1736257867263,-840.39,0.0001052,2]
[347976200,1736257867293,-838.78,0.0001052,2]
[347976201,1736257867326,-533.53,0.0001052,2]
[347976202,1736257867358,-515.13,0.0001052,2]
[347976203,1736257867391,-500.0,0.0001052,2]
[347976204,1736257867423,-500.0,0.0001052,2]
[347976205,1736257867454,-500.0,0.0001052,2]
[347976206,1736257867486,-1787.79,0.0001052,2]
[347976207,1736257867517,-531.78,0.0001052,2]
[347976208,1736257867549,-567.94,0.0001052,2]
[347976209,1736257867583,-500.0,0.0001052,2]
[347976210,1736257867615,-500.0,0.0001052,2]
[347976211,1736257867647,-2251.89,0.0001052,2]
[347976212,1736257867678,-500.0,0.0001052,2]
[347976213,1736257867711,-500.0,0.0001052,2]
[347976214,1736257867747,-500.0,0.0001052,2]
[347976215,1736257867784,-500.0,0.0001052,2]
[347976216,1736257867819,-500.0,0.0001052,2]
[347976217,1736257867857,-630.06,0.0001052,2]
[347976218,1736257867892,-1464.02,0.0001052,2]
[347976219,1736257867928,-500.0,0.0001052,2]
[347976220,1736257867965,-500.0,0.0001052,2]
[347976221,1736257868000,-500.0,0.0001052,2]
[347976222,1736257868034,-500.0,0.0001052,2]
[347976223,1736257868074,-751.18,0.0001052,2]
[347976224,1736257868107,-500.0,0.0001052,2]
[347976225,1736257868144,-7102.62,0.0001052,2]
[347976226,1736257868179,-2682.01,0.0001052,2]
[347976227,1736257868211,-500.0,0.0001052,2]
[347976228,1736257868248,-3981.04,0.0001052,2]
[347976229,1736257868281,-500.0,0.0001052,2]
[347976230,1736257868314,-500.0,0.0001052,2]
[347976231,1736257868350,-500.0,0.0001052,2]
[347976232,1736257868385,-1113.93,0.0001052,2]
[347976233,1736257868421,-3261.92,0.0001052,2]
[347976234,1736257868455,-569.44561945,0.0001052,2]
[347976235,1736257868488,-549.07,0.0001052,2]
[347976236,1736257868519,-500.0,0.0001052,2]
[347976237,1736257868551,-500.0,0.0001052,2]
[347976238,1736257868585,-500.0,0.0001052,2]
[347976239,1736257868620,-18202.93,0.0001052,2]
[347976240,1736257868653,-500.0,0.0001052,2]
[347976241,1736257868684,-500.0,0.0001052,2]
[347976242,1736257868721,-500.0,0.0001052,2]
[347976243,1736257868756,-500.0,0.0001052,2]
[347976244,1736257868790,-500.0,0.0001052,2]
[347976245,1736257868823,-500.0,0.0001052,2]
[347976246,1736257868859,-521.58209063,0.0001052,2]
[347976247,1736257868894,-760.62,0.0001052,2]
[347976248,1736257868927,-500.0,0.0001052,2]
[347976249,1736257868961,-500.0,0.0001052,2]
[347976250,1736257868999,-6621.17,0.0001052,2]
[347976251,1736257869034,-500.0,0.0001052,2]
[347976252,1736257869070,-2069.49,0.0001052,2]
[347976253,1736257869105,-500.0,0.0001052,2]
[347976254,1736257869140,-500.0,0.0001052,2]
[347976255,1736257869180,-657.74,0.0001052,2]
[347976256,1736257869217,-438.72016399,0.0001052,2]
[347976257,1736257869253,-500.0,0.0001052,2]
[347976258,1736257869287,-1548.37,0.0001052,2]
[347976259,1736257869322,-500.0,0.0001052,2]
[347976260,1736257869357,-2780.33,0.0001052,2]
[347976261,1736257869399,-6160.88,0.0001052,2]
[347976262,1736257869439,-586.91,0.0001052,2]
[347976263,1736257869474,-500.0,0.0001052,2]
[347976264,1736257869512,-500.0,0.0001052,2]
[347976265,1736257869546,-1852.42,0.0001052,2]
[347976266,1736257869581,-500.0,0.0001052,2]
[347976267,1736257869615,-500.0,0.0001052,2]
[347976268,1736257869648,-2224.31,0.0001052,2]
[347976269,1736257869679,-3765.66,0.0001052,2]
[347976270,1736257869712,-500.0,0.0001052,2]
[347976271,1736257869753,-10054.67,0.0001052,2]
[347976272,1736257869789,-1825.82,0.0001052,2]
[347976273,1736257869823,-500.0,0.0001052,2]
[347976274,1736257869861,-5948.66,0.0001052,2]
[347976275,1736257869897,-513.44,0.0001052,2]
[347976276,1736257869934,-500.0,0.0001052,2]
[347976277,1736257869969,-2002.3,0.0001052,2]
[347976278,1736257870010,-4993.44,0.0001052,2]
[347976279,1736257870046,-770.89,0.0001052,2]
[347976280,1736257870087,-540.35,0.0001052,2]
[347976281,1736257870126,-1607.99,0.0001052,2]
[347976282,1736257870162,-2347.54,0.0001052,2]
[347976283,1736257870197,-500.0,0.0001052,2]
[347976284,1736257870232,-515.8,0.0001052,2]
[347976285,1736257870268,-2416.99,0.0001052,2]
[347976286,1736257870302,-500.0,0.0001052,2]
[347976287,1736257870339,-4327.36,0.0001052,2]
[347976288,1736257870373,-509.39,0.0001052,2]
[347976289,1736257870408,-5697.12,0.0001052,2]
[347976290,1736257870443,-1101.82,0.0001052,2]
[347976291,1736257870476,-847.71,0.0001052,2]
[347976292,1736257870508,-10649.47,0.0001052,2]
[347976293,1736257870540,-500.0,0.0001052,2]
[347976294,1736257870575,-7713.54,0.0001052,2]
[347976295,1736257870611,-500.0,0.0001052,2]
[347976296,1736257870647,-500.0,0.0001052,2]
[347976297,1736257870681,-1882.84,0.0001052,2]
[347976298,1736257870716,-500.0,0.0001052,2]
[347976299,1736257870750,-1303.4,0.0001052,2]
[347976300,1736257870783,-500.0,0.0001052,2]
[347976301,1736257870816,-2682.17,0.0001052,2]
[347976302,1736257870850,-500.0,0.0001052,2]
[347976303,1736257870884,-366.82090752,0.0001052,2]
[347976304,1736257870918,-1606.33,0.0001052,2]
[347976305,1736257870951,-500.0,0.0001052,2]
[347976306,1736257870988,-508.87,0.0001052,2]
[347976307,1736257871023,-1287.6,0.0001052,2]
[347976308,1736257871057,-860.63,0.0001052,2]
[347976309,1736257871092,-4167.94,0.0001052,2]
[347976310,1736257871127,-739.5,0.0001052,2]
[347976311,1736257871162,-500.0,0.0001052,2]
[347976312,1736257871197,-1466.53,0.0001052,2]
[347976313,1736257871235,-251.16384214,0.00010521,2]
[347976314,1736257871270,-1825.6,0.00010521,2]
[347976315,1736257871307,-1424.24,0.00010521,2]
[347976316,1736257871342,-1247.98,0.00010521,2]
[347976317,1736257871374,-500.0,0.00010521,2]
[347976318,1736257871410,-678.64,0.00010521,2]
[347976319,1736257871729,-500.0,0.00010521,2]
[347976320,1736257871766,-500.0,0.00010521,2]
[347976321,1736257871801,-500.0,0.00010521,2]
[347976322,1736257871837,-500.0,0.00010521,2]
[347976323,1736257871871,-500.0,0.00010521,2]
[347976324,1736257871906,-872.16,0.00010521,2]
[347976325,1736257871946,-8485.5,0.00010521,2]
[347976326,1736257871984,-500.0,0.00010521,2]
[347976327,1736257872019,-500.0,0.00010521,2]
[347976328,1736257872054,-500.0,0.00010521,2]
[347976329,1736257872088,-500.0,0.00010521,2]
[347976330,1736257872122,-500.0,0.00010521,2]
[347976331,1736257872155,-500.0,0.00010521,2]
[347976332,1736257872186,-500.0,0.00010521,2]
[347976333,1736257872220,-559.81,0.00010521,2]
[347976334,1736257872254,-1782.85,0.00010521,2]
[347976335,1736257872286,-500.0,0.00010521,2]
[347976336,1736257872318,-500.0,0.00010521,2]
[347976337,1736257872352,-500.0,0.00010521,2]
[347976338,1736257872385,-500.0,0.00010521,2]
[347976339,1736257872416,-500.0,0.00010521,2]
[347976340,1736257872448,-500.0,0.00010521,2]
[347976341,1736257872479,-500.0,0.00010521,2]
[347976342,1736257872510,-549.62,0.00010521,2]
[347976343,1736257872541,-500.0,0.00010521,2]
[347976344,1736257872575,-500.0,0.00010521,2]
[347976345,1736257872608,-500.0,0.00010521,2]
[347976346,1736257872643,-772.05,0.00010521,2]
[347976347,1736257872676,-500.0,0.00010521,2]
[347976348,1736257872709,-500.0,0.00010521,2]
[347976349,1736257872746,-571.7,0.00010521,2]
[347976350,1736257872782,-551.02,0.00010521,2]
[347976351,1736257872816,-500.0,0.00010521,2]
[347976352,1736257872849,-500.0,0.00010521,2]
[347976353,1736257872881,-661.6,0.00010521,2]
[347976354,1736257872913,-500.0,0.00010521,2]
[347976355,1736257872944,-500.0,0.00010521,2]
[347976356,1736257872976,-500.0,0.00010521,2]
[347976357,1736257873010,-593.96,0.00010521,2]
[347976358,1736257873045,-500.0,0.00010521,2]
[347976359,1736257873081,-520.45,0.00010521,2]
[347976360,1736257873120,-500.0,0.00010521,2]
[347976361,1736257873156,-500.0,0.00010521,2]
[347976362,1736257873192,-500.0,0.00010521,2]
[347976363,1736257873226,-500.0,0.00010521,2]
[347976364,1736257873260,-500.0,0.00010521,2]
[347976365,1736257873293,-500.0,0.00010521,2]
[347976366,1736257873326,-516.65,0.00010521,2]
[347976367,1736257873363,-575.16006284,0.00010521,2]
[347976368,1736257873397,-500.0,0.00010521,2]
[347976369,1736257873432,-1918.4,0.00010521,2]
[347976370,1736257873466,-500.0,0.00010521,2]
[347976371,1736257873500,-517.43,0.00010521,2]
[347976372,1736257873533,-500.0,0.00010521,2]
[347976373,1736257873566,-266.23399173,0.00010521,2]
[347976374,1736257873600,-500.0,0.00010521,2]
[347976375,1736257873634,-301.45443323,0.00010521,2]
[347976376,1736257873668,-500.0,0.00010521,2]
[347976377,1736257873704,-500.0,0.00010521,2]
[347976378,1736257873744,-1330.98,0.00010521,2]
[347976379,1736257873779,-503.03803374,0.00010521,2]
[347976380,1736257873812,-500.0,0.00010521,2]
[347976381,1736257873847,-500.0,0.00010521,2]
[347976382,1736257873882,-500.0,0.00010521,2]
[347976383,1736257873915,-500.0,0.00010521,2]
[347976384,1736257873949,-500.0,0.00010521,2]
[347976385,1736257873984,-348.73217868,0.00010521,2]
[347976386,1736257874019,-500.0,0.00010521,2]
[347976387,1736257874051,-500.0,0.00010521,2]
[347976388,1736257874088,-500.0,0.00010521,2]
[347976389,1736257874122,-524.34332142,0.00010521,2]
[347976390,1736257874158,-1144.09,0.00010521,2]
[347976391,1736257874192,-500.0,0.00010521,2]
[347976392,1736257874225,-500.0,0.00010521,2]
[347976393,1736257874258,-500.0,0.00010521,2]
[347976394,1736257874297,-500.0,0.00010521,2]
[347976395,1736257874330,-500.0,0.00010521,2]
[347976396,1736257874368,-500.0,0.00010521,2]
[347976397,1736257874403,-645.18457993,0.00010521,2]
[347976398,1736257874437,-500.0,0.00010521,2]
[347976399,1736257874469,-502.47791767,0.00010521,2]
[347976400,1736257874502,-500.0,0.00010521,2]
[347976401,1736257874535,-500.0,0.00010521,2]
[347976402,1736257874567,-500.0,0.00010521,2]
[347976403,1736257874600,-500.0,0.00010521,2]
[347976404,1736257874634,-500.0,0.00010521,2]
[347976405,1736257874667,-389.91919735,0.00010521,2]
[347976406,1736257874702,-500.0,0.00010521,2]
[347976407,1736257874739,-500.0,0.00010521,2]
[347976408,1736257874775,-588.85,0.00010521,2]
[347976409,1736257874809,-1283.07,0.00010521,2]
[347976410,1736257874842,-500.0,0.00010521,2]
[347976411,1736257874875,-500.0,0.00010521,2]
[347976412,1736257874908,-523.58,0.00010521,2]
[347976413,1736257874941,-776.88,0.00010521,2]
[347976414,1736257874977,-500.0,0.00010521,2]
[347976415,1736257875013,-2197.83,0.00010521,2]
[347976416,1736257875047,-500.0,0.00010521,2]
[347976417,1736257875087,-500.0,0.00010521,2]
[347976418,1736257875124,-559.19,0.00010521,2]
[347976419,1736257875161,-1956.12,0.00010521,2]
[347976420,1736257875195,-500.0,0.00010521,2]
[347976421,1736257875228,-570.26326184,0.00010521,2]
[347976422,1736257875261,-500.0,0.00010521,2]
[347976423,1736257875295,-500.0,0.00010521,2]
[347976424,1736257875328,-605.28,0.00010521,2]
[347976425,1736257875363,-396.22,0.00010521,2]
[347976426,1736257875460,-510.2,0.00010521,2]
[347976427,1736257875493,-500.0,0.00010521,2]
[347976428,1736257875525,-500.0,0.00010521,2]
[347976429,1736257875558,-605.46,0.00010521,2]
[347976430,1736257875591,-500.0,0.00010521,2]
[347976431,1736257875622,-500.0,0.00010521,2]
[347976432,1736257875654,-522.87747856,0.00010521,2]
[347976433,1736257875686,-500.0,0.00010521,2]
[347976434,1736257875725,-1850.0,0.00010521,2]
[347976435,1736257875768,-564.73,0.00010521,2]
[347976436,1736257875807,-1432.01,0.00010521,2]
[347976437,1736257875842,-500.0,0.00010521,2]
[347976438,1736257875878,-632.79,0.00010521,2]
[347976439,1736257875912,-934.89,0.00010521,2]
[347976440,1736257875946,-500.0,0.00010521,2]
[347976441,1736257875985,-500.0,0.00010521,2]
[347976442,1736257876019,-500.0,0.00010521,2]
[347976443,1736257876057,-1115.44,0.00010521,2]
[347976444,1736257876093,-789.21,0.00010521,2]
[347976445,1736257876128,-506.24878557,0.00010521,2]
[347976446,1736257876161,-500.0,0.00010521,2]
[347976447,1736257876193,-2449.17,0.00010521,2]
[347976448,1736257876224,-500.0,0.00010521,2]
[347976449,1736257876257,-1075.65,0.00010521,2]
[347976450,1736257876289,-1293.0,0.00010521,2]
[347976451,1736257876321,-500.0,0.00010521,2]
[347976452,1736257876354,-502.70555494,0.00010521,2]
[347976453,1736257876388,-685.66,0.00010521,2]
[347976454,1736257876422,-912.39,0.00010521,2]
[347976455,1736257876454,-1463.53,0.00010521,2]
[347976456,1736257876486,-774.68,0.00010521,2]
[347976457,1736257876518,-1667.59,0.00010521,2]
[347976458,1736257876550,-500.0,0.00010521,2]
[347976459,1736257876581,-1821.24,0.00010521,2]
[347976460,1736257876613,-500.0,0.00010521,2]
[347976461,1736257876645,-500.0,0.00010521,2]
[347976462,1736257876677,-500.0,0.00010521,2]
[347976463,1736257876710,-525.51126313,0.00010521,2]
[347976464,1736257876743,-500.0,0.00010521,2]
[347976465,1736257876776,-535.12998106,0.00010521,2]
[347976466,1736257876810,-500.0,0.00010521,2]
[347976467,1736257876844,-789.62,0.00010521,2]
[347976468,1736257876877,-725.32,0.00010521,2]
[347976469,1736257876910,-537.39,0.00010521,2]
[347976470,1736257876942,-500.0,0.00010521,2]
[347976471,1736257876980,-1126.42,0.00010521,2]
[347976472,1736257877015,-540.1,0.00010521,2]
[347976473,1736257877049,-500.0,0.00010521,2]
[347976474,1736257877083,-500.0,0.00010521,2]
[347976475,1736257877118,-500.0,0.00010521,2]
[347976476,1736257877154,-1037.25,0.00010521,2]
[347976477,1736257877190,-1737.63,0.00010521,2]
[347976478,1736257877224,-500.0,0.00010521,2]
[347976479,1736257877257,-532.24,0.00010521,2]
[347976480,1736257877289,-666.09,0.00010521,2]
[347976481,1736257877322,-500.0,0.00010521,2]
[347976482,1736257877357,-500.0,0.00010521,2]
[347976483,1736257877390,-500.0,0.00010521,2]
[347976484,1736257877423,-597.2,0.00010521,2]
[347976485,1736257877455,-592.37,0.00010521,2]
[347976486,1736257877487,-928.01,0.00010521,2]
[347976487,1736257877520,-500.0,0.00010521,2]
[347976488,1736257877555,-1189.11,0.00010521,2]
[347976489,1736257877594,-537.97,0.00010521,2]
[347976490,1736257877630,-635.97,0.00010521,2]
[347976491,1736257877665,-4411.81,0.00010521,2]
[347976492,1736257877698,-537.39,0.00010521,2]
[347976493,1736257877733,-500.0,0.00010521,2]
[347976494,1736257877767,-553.98,0.00010521,2]
[347976495,1736257877799,-536.56,0.00010521,2]
[347976496,1736257877831,-500.0,0.00010521,2]
[347976497,1736257877865,-559.02,0.00010521,2]
[347976498,1736257877901,-500.0,0.00010521,2]
[347976499,1736257877934,-500.0,0.00010521,2]
[347976500,1736257877968,-919.95,0.00010521,2]
[347976501,1736257878007,-500.0,0.00010521,2]
[347976502,1736257878041,-500.0,0.00010521,2]
[347976503,1736257878075,-500.0,0.00010521,2]
[347976504,1736257878111,-500.0,0.00010521,2]
[347976505,1736257878145,-2543.1,0.00010521,2]
[347976506,1736257878178,-500.0,0.00010521,2]
[347976507,1736257878212,-583.15,0.00010521,2]
[347976508,1736257878245,-500.0,0.00010521,2]
[347976509,1736257878279,-917.86,0.00010521,2]
[347976510,1736257878311,-4453.92,0.00010521,2]
[347976511,1736257878344,-500.0,0.00010521,2]
[347976512,1736257878379,-660.5,0.00010521,2]
[347976513,1736257878412,-500.0,0.00010521,2]
[347976514,1736257878445,-528.37,0.00010521,2]
[347976515,1736257878478,-560.76,0.00010521,2]
[347976516,1736257878511,-500.0,0.00010521,2]
[347976517,1736257878544,-500.0,0.00010521,2]
[347976518,1736257878578,-500.0,0.00010521,2]
[347976519,1736257878613,-4480.4,0.00010521,2]
[347976520,1736257878645,-764.28,0.00010521,2]
[347976521,1736257878679,-846.53,0.00010521,2]
[347976522,1736257878712,-500.0,0.00010521,2]
[347976523,1736257878747,-1286.86,0.00010521,2]
[347976524,1736257878781,-814.15,0.00010521,2]
[347976525,1736257878814,-500.0,0.00010521,2]
[347976526,1736257878847,-500.0,0.00010521,2]
[347976527,1736257878880,-500.0,0.00010521,2]
[347976528,1736257878915,-500.0,0.00010521,2]
[347976529,1736257878950,-500.0,0.00010521,2]
[347976530,1736257878986,-554.04,0.00010521,2]
[347976531,1736257879019,-500.0,0.00010521,2]
[347976532,1736257879053,-1378.92,0.00010521,2]
[347976533,1736257879087,-500.0,0.00010521,2]
[347976534,1736257879123,-500.0,0.00010521,2]
[347976535,1736257879162,-932.02,0.00010521,2]
[347976536,1736257879199,-500.0,0.00010521,2]
[347976537,1736257879236,-500.0,0.00010521,2]
[347976538,1736257879272,-500.0,0.00010521,2]
[347976539,1736257879309,-635.83,0.00010521,2]
[347976540,1736257879347,-500.0,0.00010521,2]
[347976541,1736257879386,-500.0,0.00010521,2]
[347976542,1736257879421,-1144.18,0.00010521,2]
[347976543,1736257879453,-500.0,0.00010521,2]
[347976544,1736257879485,-500.0,0.00010521,2]
[347976545,1736257879518,-832.31,0.00010521,2]
[347976546,1736257879550,-744.82,0.00010521,2]
[347976547,1736257879583,-500.0,0.00010521,2]
[347976548,1736257879619,-2413.24,0.00010521,2]
[347976549,1736257879652,-1041.48,0.00010521,2]
[347976550,1736257879686,-531.78,0.00010521,2]
[347976551,1736257879720,-500.0,0.00010521,2]
[347976552,1736257879755,-531.78,0.00010521,2]
[347976553,1736257879790,-500.0,0.00010521,2]
[347976554,1736257879824,-500.0,0.00010521,2]
[347976555,1736257879859,-500.0,0.00010521,2]
[347976556,1736257879894,-893.23,0.00010521,2]
[347976557,1736257879927,-500.0,0.00010521,2]